fUSD/lending_fUSD_20240619
["ID","MTS","AMOUNT","RATE_DAILY","PERIOD"]
[329911152,1718826638768,-1341.7538906,0.00012989,2]
[329911153,1718826638778,-1007.7139035,0.00012989,2]
[329911154,1718826638787,-1289.6564791,0.00012989,2]
[329911155,1718826638797,-688.0889767,0.00012989,2]
[329911156,1718826638809,-6881.9580349,0.00012991,2]
[329911157,1718826638819,-525.20985214,0.00012998,2]
[329911158,1718826638828,-645.83379313,0.00012998,2]
[329911159,1718826638840,-1624.24518596,0.00012998,2]
[329911160,1718826638850,-282.95218659,0.00012998,2]
[329911161,1718826638860,-3021.03825026,0.00012998,2]
[329911162,1718826638870,-625.30448628,0.00012998,2]
[329911163,1718826638880,-182.09019871,0.00012998,2]
[329911164,1718826638890,-1157.98675746,0.00012998,2]
[329911165,1718826638900,-4153.25500256,0.00012998,2]
[329911166,1718826638910,-757.12031066,0.00012998,2]
[329911167,1718826638920,-155.09956307,0.00012998,2]
[329911168,1718826638930,-4691.72624507,0.00012998,2]
[329911169,1718826638939,-158.28745137,0.00012998,2]
[329911170,1718826638949,-204.99679615,0.00012998,2]
[329911171,1718826638959,-271.23788413,0.00012998,2]
[329911172,1718826638968,-236.11142399,0.00012998,2]
[329911173,1718826638978,-300.57713978,0.00012998,2]
[329911174,1718826638988,-155.0,0.00012998,2]
[329911175,1718826638998,-1000.0,0.00012998,2]
[329911176,1718826639008,-177.62509535,0.00012998,2]
[329911177,1718826639018,-364.10762099,0.00012998,2]
[329911178,1718826639028,-292.72465215,0.00012998,2]
[329911179,1718826639038,-365.36443535,0.00012998,2]
[329911180,1718826639048,-155.0,0.00012998,2]
[329911181,1718826639058,-245.66945362,0.00012998,2]
[329911182,1718826639068,-482.31770183,0.00012998,2]
[329911183,1718826639079,-3102.76307355,0.00012998,2]
[329911184,1718826639088,-327.66084969,0.00012998,2]
[329911185,1718826639098,-375.03775414,0.00012998,2]
[329911186,1718826639108,-338.86135948,0.00012998,2]
[329911187,1718826639119,-2008.69237273,0.00012999,2]
[329911188,1718826639129,-3793.24660495,0.00012999,2]
[329911189,1718826639139,-157.45447587,0.00012999,2]
[329911190,1718826639151,-533.0926496,0.00012999,2]
[329911191,1718826639160,-512.0,0.00013,2]
[329911192,1718826639170,-227380.50981919,0.00013,2]
[329911193,1718826639189,-753.12547015,0.00013,2]
[329911195,1718826639927,-5110.57347141,0.00013,2]
[329911196,1718826639962,-473.28023069,0.00013,2]
[329911197,1718826639974,-1917.30000001,0.00013,2]
[329911198,1718826640109,-414.11999972,0.00013,2]
[329911199,1718826640120,-3248.33937883,0.00013,2]
[329911200,1718826640131,-473.75552024,0.00013,2]
[329911201,1718826640142,-306.95,0.00013,2]
[329911306,1718826642889,-355.284441,0.00013,2]
[329911307,1718826642973,-505.34240987,0.00013,2]
[329911308,1718826643043,-6827.45311759,0.00013,2]
[329911309,1718826643175,-1540.2460002,0.00013,2]
[329911327,1718826646036,-533.0926496,0.00012999,2]
[329911328,1718826646046,-4698.02595281,0.00012999,2]
[329911329,1718826646056,-1420.53373656,0.00013,2]
[329911330,1718826646067,-13800.0,0.00013,2]
[329911331,1718826646172,-868.475,0.00013,2]
[329911332,1718826646366,-14588.18948292,0.00013,2]
[329911333,1718826646378,-9049.34034,0.00013,2]
[329911334,1718826646389,-5453.69448194,0.00013,2]
[329911335,1718826646400,-3953.69733935,0.00013,2]
[329911336,1718826646485,-1181.38920354,0.00013,2]
[329912143,1718826974710,451.34,9.961e-05,2]
[329912146,1718827607217,449.76,9.96e-05,2]
[329912176,1718827832125,-155.0,0.00011768,2]
[329912177,1718827832136,-159.85756079,0.00011769,2]
[329912178,1718827832149,-225.85,0.00011869,2]
[329912179,1718827832159,-96.99243921,0.00011874,2]
[329912180,1718827832173,-903.00756079,0.00011874,2]
[329912181,1718827832184,-763.2,0.00011874,2]
[329912182,1718827832198,-250.0,0.00011876,2]
[329912183,1718827832210,-1060.5,0.00011879,2]
[329912184,1718827832221,-196.13,0.0001188,2]
[329912185,1718827832240,-500.0,0.00012,2]
[329912186,1718827832251,-500.0,0.00012,2]
[329912187,1718827832261,-500.0,0.00012,2]
[329912188,1718827832275,-500.0,0.00012,2]
[329912189,1718827832285,-500.0,0.00012,2]
[329912190,1718827832295,-500.0,0.00012,2]
[329912191,1718827832305,-500.0,0.00012,2]
[329912192,1718827832315,-500.0,0.00012,2]
[329912193,1718827832326,-264.41735211,0.00012,2]
[329912194,1718827832339,-235.58264789,0.00012,2]
[329912195,1718827832349,-500.0,0.00012,2]
[329912196,1718827832359,-500.0,0.00012,2]
[329912197,1718827832369,-197.10499937,0.00012,2]
[329912198,1718827832389,-302.89500063,0.00012,2]
[329912199,1718827832399,-408.70499937,0.00012,2]
[329912200,1718827832411,-91.29500063,0.00012,2]
[329912201,1718827832421,-500.0,0.00012,2]
[329912202,1718827832432,-500.0,0.00012,2]
[329912203,1718827832442,-500.0,0.00012,2]
[329912204,1718827832451,-500.0,0.00012,2]
[329912205,1718827832461,-500.0,0.00012,2]
[329912206,1718827832472,-500.0,0.00012,2]
[329912208,1718827832482,-500.0,0.00012,2]
[329912210,1718827832492,-500.0,0.00012,2]
[329912212,1718827832502,-500.0,0.00012,2]
[329912214,1718827832512,-500.0,0.00012,2]
[329912216,1718827832527,-500.0,0.00012,2]
[329912218,1718827832536,-500.0,0.00012,2]
[329912220,1718827832546,-500.0,0.00012,2]
[329912222,1718827832555,-509.13,0.00012,2]
[329912225,1718827832565,-500.0,0.00012,2]
[329912229,1718827832574,-500.0,0.00012,2]
[329912234,1718827832584,-500.0,0.00012,2]
[329912237,1718827832594,-500.0,0.00012,2]
[329912239,1718827832604,-500.0,0.00012,2]
[329912241,1718827832613,-500.0,0.00012,2]
[329912243,1718827832623,-500.0,0.00012,2]
[329912245,1718827832634,-500.0,0.00012,2]
[329912247,1718827832644,-500.0,0.00012,2]
[329912249,1718827832653,-500.0,0.00012,2]
[329912251,1718827832663,-500.0,0.00012,2]
[329912253,1718827832672,-500.0,0.00012,2]
[329912255,1718827832681,-500.0,0.00012,2]
[329912257,1718827832691,-500.0,0.00012,2]
[329912259,1718827832701,-271.59,0.00012,2]
[329912261,1718827832712,-500.0,0.00012,2]
[329912263,1718827832722,-500.0,0.00012,2]
[329912266,1718827832732,-193.87289918,0.00012,2]
[329912272,1718827832781,-306.12710082,0.00012,2]
[329912274,1718827832790,-500.0,0.00012,2]
[329912276,1718827832799,-500.0,0.00012,2]
[329912278,1718827832809,-500.0,0.00012,2]
[329912280,1718827832819,-500.0,0.00012,2]
[329912282,1718827832830,-500.0,0.00012,2]
[329912284,1718827832840,-500.0,0.00012,2]
[329912286,1718827832850,-500.0,0.00012,2]
[329912288,1718827832859,-500.0,0.00012,2]
[329912290,1718827832869,-500.0,0.00012,2]
[329912292,1718827832878,-500.0,0.00012,2]
[329912294,1718827832888,-500.0,0.00012,2]
[329912296,1718827832898,-500.0,0.00012,2]
[329912299,1718827832909,-500.0,0.00012,2]
[329912301,1718827832919,-500.0,0.00012,2]
[329912303,1718827832930,-500.0,0.00012,2]
[329912305,1718827832939,-500.0,0.00012,2]
[329912307,1718827832949,-500.0,0.00012,2]
[329912309,1718827832958,-500.0,0.00012,2]
[329912310,1718827832968,-500.0,0.00012,2]
[329912312,1718827832978,-500.0,0.00012,2]
[329912314,1718827832988,-500.0,0.00012,2]
[329912316,1718827832999,-500.0,0.00012,2]
[329912317,1718827833009,-500.0,0.00012,2]
[329912318,1718827833020,-25.15102336,0.00012,2]
[329912319,1718827833053,-474.84897664,0.00012,2]
[329912320,1718827833062,-500.0,0.00012,2]
[329912321,1718827833072,-500.0,0.00012,2]
[329912322,1718827833082,-500.0,0.00012,2]
[329912323,1718827833092,-500.0,0.00012,2]
[329912324,1718827833102,-500.0,0.00012,2]
[329912325,1718827833111,-491.85102336,0.00012,2]
[329912326,1718827833124,-8.14897664,0.00012,2]
[329912327,1718827833134,-341.85102336,0.00012,2]
[329912328,1718827833147,-158.14897664,0.00012,2]
[329912329,1718827833160,-500.0,0.00012,2]
[329912330,1718827833170,-500.0,0.00012,2]
[329912331,1718827833180,-500.0,0.00012,2]
[329912332,1718827833190,-500.0,0.00012,2]
[329912333,1718827833201,-1414.9089,0.000122,2]
[329912334,1718827833211,-449.76,0.00012224,2]
[329912335,1718827833221,-150.0,0.00012706,2]
[329912336,1718827833231,-150.0,0.00012719,2]
[329912337,1718827833242,-150.0,0.00012721,2]
[329912338,1718827833252,-150.0,0.00012737,2]
[329912339,1718827833261,-150.0,0.00012739,2]
[329912340,1718827833273,-150.0,0.00012744,2]
[329912341,1718827833282,-150.0,0.00012745,2]
[329912342,1718827833292,-150.0,0.00012745,2]
[329912343,1718827833302,-150.0,0.00012757,2]
[329912344,1718827833312,-5164.0,0.00012766,2]
[329912345,1718827833321,-290.0,0.00012766,2]
[329912346,1718827833331,-1067.0,0.00012766,2]
[329912347,1718827833340,-150.0,0.00012768,2]
[329912348,1718827833349,-150.0,0.00012768,2]
[329912349,1718827833358,-150.0,0.00012771,2]
[329912350,1718827833367,-150.0,0.00012773,2]
[329912351,1718827833794,-150.0,0.00012774,2]
[329912352,1718827833812,-150.0,0.00012774,2]
[329912353,1718827833822,-150.0,0.00012778,2]
[329912354,1718827833833,-150.0,0.00012778,2]
[329912355,1718827833843,-150.0,0.00012784,2]
[329912356,1718827833852,-150.0,0.00012796,2]
[329912357,1718827833862,-150.0,0.00012805,2]
[329912358,1718827833872,-3872.124,0.00012805,2]
[329912359,1718827833881,-150.0,0.00012817,2]
[329912360,1718827833891,-150.0,0.00012819,2]
[329912361,1718827833901,-150.0,0.00012822,2]
[329912362,1718827833911,-150.0,0.00012822,2]
[329912363,1718827833921,-150.0,0.00012824,2]
[329912364,1718827833930,-150.0,0.00012826,2]
[329912365,1718827833940,-150.0,0.00012827,2]
[329912366,1718827833951,-150.0,0.00012828,2]
[329912367,1718827833960,-150.0,0.00012829,2]
[329912368,1718827833970,-150.0,0.00012832,2]
[329912369,1718827833980,-150.0,0.00012833,2]
[329912370,1718827833989,-150.0,0.00012833,2]
[329912371,1718827833999,-150.0,0.0001284,2]
[329912372,1718827834009,-150.0,0.00012841,2]
[329912373,1718827834026,-150.0,0.00012843,2]
[329912374,1718827834036,-150.0,0.00012845,2]
[329912375,1718827834046,-150.0,0.00012845,2]
[329912376,1718827834056,-150.0,0.00012846,2]
[329912377,1718827834067,-150.0,0.00012847,2]
[329912378,1718827834077,-150.0,0.00012848,2]
[329912379,1718827834087,-150.0,0.00012848,2]
[329912380,1718827834098,-150.0,0.0001285,2]
[329912381,1718827834107,-150.0,0.00012851,2]
[329912382,1718827834117,-150.0,0.00012855,2]
[329912383,1718827834127,-150.0,0.00012859,2]
[329912384,1718827834138,-150.0,0.0001286,2]
[329912385,1718827834152,-150.0,0.00012861,2]
[329912386,1718827834162,-150.0,0.00012861,2]
[329912387,1718827834172,-150.0,0.00012868,2]
[329912388,1718827834181,-150.0,0.00012873,2]
[329912389,1718827834193,-150.0,0.00012879,2]
[329912390,1718827834203,-150.0,0.00012882,2]
[329912391,1718827834213,-150.0,0.00012886,2]
[329912392,1718827834223,-150.0,0.00012886,2]
[329912393,1718827834237,-150.0,0.00012887,2]
[329912394,1718827834248,-150.0,0.00012888,2]
[329912395,1718827834258,-150.0,0.00012888,2]
[329912396,1718827834268,-150.0,0.00012888,2]
[329912397,1718827834279,-150.0,0.00012889,2]
[329912398,1718827834289,-150.0,0.00012896,2]
[329912399,1718827834299,-150.0,0.00012898,2]
[329912400,1718827834308,-150.0,0.000129,2]
[329912401,1718827834319,-400.0,0.000129,4]
[329912402,1718827834329,-223.46451821,0.000129,2]
[329912403,1718827834339,-326.00260076,0.000129,2]
[329912404,1718827834348,-25343.01576482,0.000129,2]
[329912405,1718827834362,-5370.58140367,0.000129,2]
[329912406,1718827834374,-836.58027878,0.000129,2]
[329912407,1718827834387,-6849.98086953,0.000129,2]
[329912408,1718827834435,-387.0989336,0.000129,2]
[329912409,1718827834459,-3809.32419854,0.000129,2]
[329912410,1718827834471,-3058.47898081,0.000129,2]
[329912418,1718827838059,-489.7303052,0.00011873,2]
[329912419,1718827838257,-2523.20481357,0.00011873,2]
[329912420,1718827838328,-2142.52488123,0.00011873,2]
[329912422,1718827838338,-155.83786571,0.000129,2]
[329912424,1718827838349,-150.0,0.00012902,2]
[329912426,1718827838358,-150.0,0.00012905,2]
[329912427,1718827838368,-150.0,0.00012907,2]
[329912428,1718827838378,-150.0,0.00012909,2]
[329912429,1718827838388,-150.0,0.00012912,2]
[329912430,1718827838397,-150.0,0.00012913,2]
[329912431,1718827838408,-150.0,0.00012915,2]
[329912432,1718827838417,-150.0,0.00012922,2]
[329912433,1718827838427,-150.0,0.00012922,2]
[329912434,1718827838437,-150.0,0.00012925,2]
[329912435,1718827838447,-150.0,0.00012927,2]
[329912436,1718827838456,-150.0,0.00012928,2]
[329912437,1718827838466,-150.0,0.00012929,2]
[329912438,1718827838476,-150.0,0.0001293,2]
[329912440,1718827838486,-150.0,0.00012934,2]
[329912443,1718827838495,-150.0,0.00012939,2]
[329912445,1718827838505,-150.0,0.00012941,2]
[329912447,1718827838515,-150.0,0.00012947,2]
[329912449,1718827838525,-150.0,0.00012947,2]
[329912451,1718827838535,-150.0,0.0001295,2]
[329912453,1718827838545,-150.0,0.00012955,2]
[329912456,1718827838555,-150.0,0.00012955,2]
[329912458,1718827838566,-150.0,0.00012955,2]
[329912459,1718827838575,-150.0,0.00012955,2]
[329912461,1718827838585,-150.0,0.00012956,2]
[329912463,1718827838594,-150.0,0.00012961,2]
[329912465,1718827838603,-150.0,0.00012964,2]
[329912467,1718827838613,-150.0,0.00012964,2]
[329912470,1718827838623,-150.0,0.00012965,2]
[329912472,1718827838632,-150.0,0.0001297,2]
[329912474,1718827838641,-150.0,0.00012971,2]
[329912476,1718827838651,-150.0,0.00012973,2]
[329912478,1718827838661,-150.0,0.00012974,2]
[329912480,1718827838672,-150.0,0.00012976,2]
[329912482,1718827838682,-150.0,0.0001298,2]
[329912484,1718827838692,-150.0,0.0001298,2]
[329912486,1718827838702,-150.0,0.00012985,2]
[329912488,1718827838712,-150.0,0.00012986,2]
[329912490,1718827838721,-4695.2381454,0.00012989,2]
[329912680,1718827840584,-7888.46178,0.00012989,2]
[329912686,1718827840633,-2915.66914782,0.00012989,2]
[329912856,1718827843122,-5293.85435768,0.00012989,2]
[329912857,1718827843132,-1530.441302,0.00012989,2]
[329912858,1718827843142,-280.5396263,0.00012989,2]
[329912859,1718827843159,-2102.2060653,0.00012989,2]
[329912860,1718827843169,-223.9388229,0.00012989,2]
[329912861,1718827843179,-927.8335509,0.00012989,2]
[329912862,1718827843188,-371.235551,0.00012989,2]
[329912863,1718827843198,-399.8194872,0.00012999,2]
[329912864,1718827843208,-34164.9145946,0.00013,2]
[329912865,1718827843244,-413.77459979,0.00013,2]
[329912866,1718827843256,-667831.93000761,0.00013,2]
[329912867,1718827843268,-9245.46360874,0.00013,2]
[329912868,1718827843408,-11323.7583529,0.00013,2]
[329912869,1718827843418,-1533.652758,0.00013,2]
[329912870,1718827843428,-161.54726257,0.00013,2]
[329912871,1718827843438,-3270.10716214,0.00013,2]
[329912872,1718827843449,-3892.63065533,0.00013,2]
[329912873,1718827843459,-11946.30846648,0.00013,2]
[329912874,1718827843468,-3345.24567927,0.00013,2]
[329912875,1718827843477,-1792.0,0.00013,2]
[329912876,1718827843487,-19798.06682085,0.00013,2]
[329912877,1718827843496,-155.0,0.00013,2]
[329912878,1718827843505,-155.06682902,0.00013,2]
[329912879,1718827843514,-155.0,0.00013,2]
[329912880,1718827843526,-180.88741055,0.00013,2]
[329912881,1718827843535,-363.33937767,0.00013,2]
[329912883,1718827843545,-2000.0,0.00013,2]
[329912885,1718827843554,-200.0,0.00013,2]
[329912887,1718827843564,-2000.0,0.00013,2]
[329912889,1718827843574,-200.0,0.00013,2]
[329912891,1718827843584,-2000.0,0.00013,2]
[329912892,1718827843594,-200.0,0.00013,2]
[329912923,1718827843890,-1409.99107,0.00013,2]
[329912924,1718827843907,-152.0,0.00013,2]
[329912925,1718827843916,-200.0,0.00013,2]
[329912926,1718827843925,-225.0,0.00013,2]
[329912927,1718827843936,-1689.4274,0.00013,2]
[329912928,1718827843945,-800.0,0.000131,4]
[329912929,1718827843955,-2000.0,0.0001313,2]
[329912930,1718827843965,-200.0,0.0001313,2]
[329912931,1718827843974,-2000.0,0.0001313,2]
[329912932,1718827843984,-200.0,0.0001313,2]
[329912933,1718827843994,-2000.0,0.0001313,2]
[329912934,1718827844004,-200.0,0.0001313,2]
[329912935,1718827844014,-200.0,0.0001313,2]
[329912936,1718827844026,-150.0,0.0001314,2]
[329912937,1718827844037,-150.0,0.0001314,2]
[329912938,1718827844047,-150.0,0.0001314,2]
[329912939,1718827844057,-150.0,0.0001314,2]
[329912940,1718827844067,-199.783,0.0001314,2]
[329912941,1718827844076,-150.0,0.0001314,2]
[329912942,1718827844086,-359.0,0.0001314,2]
[329912943,1718827844095,-1830.0,0.0001314,2]
[329912945,1718827844104,-1271.0,0.0001314,2]
[329912946,1718827844114,-617.0,0.0001314,2]
[329912947,1718827844123,-1653.0,0.0001314,2]
[329912948,1718827844132,-477.818,0.0001314,2]
[329912949,1718827844142,-442.0,0.0001314,2]
[329912950,1718827844152,-165.0,0.0001314,2]
[329912951,1718827844165,-1210.595,0.0001314,2]
[329912952,1718827844174,-2410.0,0.0001314,2]
[329912953,1718827844184,-547.0,0.0001314,2]
[329912954,1718827844195,-3198.0,0.0001314,2]
[329912955,1718827844204,-1982.0,0.0001314,2]
[329912956,1718827844213,-211.717588,0.00013199,2]
[329912957,1718827844223,-180.145643,0.00013199,2]
[329912958,1718827844233,-223.221139,0.00013199,2]
[329912959,1718827844244,-666.763708,0.00013199,2]
[329912960,1718827844254,-200.739042,0.00013199,2]
[329912961,1718827844263,-10769.522176,0.00013199,2]
[329912962,1718827844272,-173.400328,0.00013199,2]
[329912963,1718827844283,-302.443287,0.00013199,2]
[329912964,1718827844292,-516.959728,0.00013199,2]
[329912965,1718827844302,-11387.493021,0.00013199,2]
[329912966,1718827844311,-15446.067759,0.00013199,2]
[329912967,1718827844320,-156.047806,0.00013199,2]
[329912968,1718827844330,-183.75507,0.00013199,2]
[329912969,1718827844339,-217.726162,0.00013199,2]
[329912970,1718827844349,-16279.901475,0.00013199,2]
[329912971,1718827844359,-423.992594,0.00013199,2]
[329912972,1718827844368,-153.129225,0.00013199,2]
[329912973,1718827844377,-9429.566133,0.00013199,2]
[329912974,1718827844387,-18859.132267,0.00013199,2]
[329912975,1718827844397,-1300.0,0.000132,4]
[329912976,1718827844409,-326.00260074,0.00013233,2]
[329912977,1718827844418,-2000.0,0.00013261,2]
[329912978,1718827844427,-200.0,0.00013261,2]
[329912979,1718827844436,-2000.0,0.00013261,2]
[329912980,1718827844446,-200.0,0.00013261,2]
[329912981,1718827844455,-200.0,0.00013261,2]
[329912982,1718827844465,-200.0,0.00013261,2]
[329912983,1718827844475,-173.88825402,0.00013264,2]
[329912984,1718827844484,-5734.96502912,0.00013264,2]
[329912985,1718827844495,-1700.0,0.000133,4]
[329912986,1718827844505,-5734.96502908,0.00013322,2]
[329912987,1718827844514,-225.85,0.00013352,2]
[329912988,1718827844524,-1000.0,0.00013358,2]
[329912989,1718827844533,-666.763708,0.00013364,2]
[329912990,1718827844542,-10769.522176,0.00013364,2]
[329912991,1718827844552,-173.400328,0.00013364,2]
[329912992,1718827844561,-302.443287,0.00013364,2]
[329912993,1718827844570,-516.959728,0.00013364,2]
[329912994,1718827844579,-11387.493021,0.00013364,2]
[329912995,1718827844589,-15446.067759,0.00013364,2]
[329912996,1718827844598,-183.75507,0.00013364,2]
[329912997,1718827844607,-217.726162,0.00013364,2]
[329912998,1718827844617,-423.992594,0.00013364,2]
[329912999,1718827844626,-16279.901475,0.00013364,2]
[329913000,1718827844635,-9429.566133,0.00013364,2]
[329913001,1718827844644,-18859.132267,0.00013364,2]
[329913002,1718827844653,-5734.96502908,0.0001338,2]
[329913003,1718827844662,-173.88825402,0.00013391,2]
[329913004,1718827844672,-2000.0,0.00013394,2]
[329913005,1718827844682,-200.0,0.00013394,2]
[329913006,1718827844691,-2000.0,0.00013394,2]
[329913007,1718827844701,-200.0,0.00013394,2]
[329913008,1718827844710,-200.0,0.00013394,2]
[329913009,1718827844719,-200.0,0.00013394,2]
[329913010,1718827844728,-155.83786571,0.000134,2]
[329913011,1718827844739,-7500.0,0.000134,2]
[329913012,1718827844748,-2200.0,0.000134,4]
[329913013,1718827844758,-1083.99634914,0.00013424,2]
[329913014,1718827844767,-10000.0,0.00013425,2]
[329913015,1718827844778,-5734.96502908,0.00013437,2]
[329913016,1718827844787,-159.0,0.0001348,2]
[329913017,1718827844797,-5734.96502908,0.00013495,2]
[329913018,1718827844807,-7144.18147509,0.000135,2]
[329913019,1718827844816,-400.0,0.000135,4]
[329913020,1718827844826,-173.88825402,0.00013518,2]
[329913021,1718827844835,-2000.0,0.00013528,2]
[329913022,1718827844845,-200.0,0.00013528,2]
[329913023,1718827844854,-1063.93417459,0.00013528,2]
[329913024,1718827844864,-200.0,0.00013528,2]
[329913025,1718827844873,-200.0,0.00013528,2]
[329913026,1718827844883,-200.0,0.00013528,2]
[329913027,1718827844893,-153.129225,0.00013529,2]
[329913028,1718827844902,-666.763708,0.00013529,2]
[329913029,1718827844911,-10769.522176,0.00013529,2]
[329913030,1718827844921,-173.400328,0.00013529,2]
[329913031,1718827844930,-302.443287,0.00013529,2]
[329913032,1718827844939,-516.959728,0.00013529,2]
[329913033,1718827844948,-8232.23160705,0.00013529,2]
[329913034,1718827845010,-346.0135875,0.00013529,2]
[329913035,1718827845023,-2809.24782645,0.00013529,2]
[329913036,1718827845033,-11160.75217355,0.00013529,2]
[329913037,1718827845045,-4285.31558545,0.00013529,2]
[329913038,1718827845055,-183.75507,0.00013529,2]
[329913039,1718827845064,-217.726162,0.00013529,2]
[329913040,1718827845074,-423.992594,0.00013529,2]
[329913041,1718827845084,-12579.24608969,0.00013529,2]
[329913099,1718827846306,-3700.65538531,0.00013529,2]
[329913102,1718827846315,-3175.04461469,0.00013529,2]
[329913110,1718827846369,-2722.13144878,0.00013529,2]
[329913113,1718827846388,-3532.39006953,0.00013529,2]
[329913115,1718827846398,-18859.132267,0.00013529,2]
[329913117,1718827846409,-5734.96502908,0.00013553,2]
[329913119,1718827846419,-326.00260074,0.00013567,2]
[329913121,1718827846429,-89716.0,0.00013589,2]
[329913123,1718827846439,-72623.0,0.00013589,2]
[329913125,1718827846448,-1278.33896326,0.00013598,2]
[329913126,1718827846457,-10000.0,0.00013598,2]
[329913127,1718827846467,-1000.0,0.00013598,2]
[329913128,1718827846477,-133657.93192149,0.000136,2]
[329913131,1718827846496,-1384.35305882,0.000136,2]
[329913132,1718827846507,-1110.65108149,0.000136,2]
[329913133,1718827846522,-6687.7,0.000136,2]
[329913134,1718827846541,-107159.3639382,0.000136,2]
[329913135,1718827846550,-400.0,0.000136,4]
[329913136,1718827846560,-5734.96502908,0.00013611,2]
[329913137,1718827846569,-173.88825402,0.00013646,2]
[329913138,1718827846578,-886.82891593,0.00013663,2]
[329913139,1718827846588,-5734.96502908,0.00013669,2]
[329913140,1718827846597,-1000.0,0.0001367,2]
[329913141,1718827846608,-500.0,0.0001367,2]
[329913142,1718827846616,-1000.0,0.0001367,2]
[329913143,1718827846626,-500.0,0.0001367,2]
[329913144,1718827846635,-1000.0,0.0001367,2]
[329913145,1718827846645,-500.0,0.0001367,2]
[329913146,1718827846654,-40099.50711587,0.0001367,6]
[329913147,1718827846671,-284.02268952,0.0001367,6]
[329913148,1718827846706,-1565.0,0.0001367,6]
[329913151,1718827981883,500.0,0.00026,90]
[329913152,1718828010374,500.0,0.00026,90]
[329913153,1718828021749,500.0,0.00026,90]
[329913154,1718828041956,500.0,0.00026,90]
[329913155,1718828049844,500.0,0.00026,90]
[329913156,1718828071877,500.0,0.00026,90]
[329913157,1718828079215,500.0,0.00026,90]
[329913161,1718828086694,500.0,0.00026,90]
[329913163,1718828111097,475.26,0.00026,90]
[329913172,1718828835038,524.37,9.579e-05,2]
[329913176,1718828842200,155.0,9.578e-05,2]
[329913178,1718828923053,155.0,9.578e-05,2]
[329913180,1718828938989,156.34411394,9.578e-05,2]
[329913217,1718829033044,-155.0,0.00010128,2]
[329913219,1718829033055,-519.65860075,0.00010129,2]
[329913222,1718829033066,-669.695606,0.00010131,2]
[329913224,1718829033077,-159.85756079,0.00010133,2]
[329913226,1718829033089,-150.0,0.00011157,2]
[329913228,1718829033098,-1589.02823246,0.00011158,2]
[329913230,1718829033109,-22300.97176754,0.00011158,2]
[329913232,1718829033119,-283.53,0.00011338,2]
[329913234,1718829033128,-2679.75,0.00011342,2]
[329913236,1718829033138,-150.0,0.00011342,2]
[329913238,1718829033147,-1000.0,0.00011342,2]
[329913240,1718829033156,-1352.31,0.00011411,2]
[329913242,1718829033165,-527.53,0.00011417,2]
[329913244,1718829033175,-250.0,0.00011444,2]
[329913246,1718829033184,-677.22,0.00011459,2]
[329913248,1718829033194,-2044.2,0.0001146,2]
[329913249,1718829033203,-299.99,0.0001146,2]
[329913251,1718829033212,-250.0,0.00011463,2]
[329913253,1718829033222,-4123.2,0.00011524,2]
[329913255,1718829033231,-158.46,0.00011568,2]
[329913257,1718829033240,-496.97849707,0.00011568,2]
[329913259,1718829033249,-524.37,0.00011843,2]